[Event "Amateur Tournament (ATO)"]
[Site "Biel, Switzerland"]
[Date "2026.07.16"]
[Round "3.2"]
[White "Jahn, Thomas"]
[Black "Rickli, Juerg Michel"]
[Result "1-0"]
[TimeControl "90+30+30sec/move"]
[WhiteTitle "-"]
[BlackTitle "-"]
[WhiteFideId "34679430"]
[BlackFideId "1333399"]
[WhiteElo "1944"]
[BlackElo "1742"]

1. e4 {[%clk 01:30:56]} {[%emt 00:00:02]} d5 {[%clk 01:30:43]} {[%emt
00:00:19]} 2. exd5 {[%clk 01:31:13]} {[%emt 00:00:11]} Qxd5 {[%clk 01:31:03]}
{[%emt 00:00:10]} 3. Nc3 {[%clk 01:31:34]} {[%emt 00:00:10]} Qa5 {[%clk
01:31:28]} {[%emt 00:00:05]} 4. d4 {[%clk 01:31:52]} {[%emt 00:00:12]} Nf6
{[%clk 01:31:36]} {[%emt 00:00:22]} 5. Bd2 {[%clk 01:31:49]} {[%emt 00:00:32]}
c6 {[%clk 01:31:51]} {[%emt 00:00:15]} 6. Nf3 {[%clk 01:32:03]} {[%emt
00:00:17]} Bg4 {[%clk 01:27:34]} {[%emt 00:04:48]} 7. h3 {[%clk 01:31:31]}
{[%emt 00:01:02]} Bxf3 {[%clk 01:28:00]} {[%emt 00:00:04]} 8. Qxf3 {[%clk
01:31:50]} {[%emt 00:00:10]} Qd8 {[%clk 01:27:34]} {[%emt 00:00:56]} 9. O-O-O
{[%clk 01:23:41]} {[%emt 00:08:38]} e6 {[%clk 01:25:51]} {[%emt 00:02:14]} 10.
Qg3 {[%clk 01:16:18]} {[%emt 00:07:53]} Nbd7 {[%clk 01:18:45]} {[%emt
00:07:37]} 11. f4 {[%clk 01:12:54]} {[%emt 00:03:54]} Qc7 {[%clk 01:15:10]}
{[%emt 00:04:04]} 12. Qe3 {[%clk 01:03:18]} {[%emt 00:10:06]} O-O-O {[%clk
01:08:19]} {[%emt 00:07:21]} 13. g4 {[%clk 00:58:49]} {[%emt 00:04:59]} Bb4
{[%clk 01:05:30]} {[%emt 00:03:19]} 14. f5 {[%clk 00:47:26]} {[%emt 00:11:54]}
Nd5 {[%clk 01:01:08]} {[%emt 00:04:52]} 15. Nxd5 {[%clk 00:45:05]} {[%emt
00:02:50]} Bxd2+ {[%clk 01:01:31]} {[%emt 00:00:07]} 16. Qxd2 {[%clk 00:45:27]}
{[%emt 00:00:08]} exd5 {[%clk 01:01:03]} {[%emt 00:00:59]} 17. Bd3 {[%clk
00:44:20]} {[%emt 00:01:36]} h6 {[%clk 00:54:02]} {[%emt 00:07:31]} 18. Rde1
{[%clk 00:44:17]} {[%emt 00:00:33]} Rde8 {[%clk 00:54:07]} {[%emt 00:00:25]} 19.
g5 {[%clk 00:44:18]} {[%emt 00:00:29]} hxg5 {[%clk 00:29:50]} {[%emt 00:24:47]}
20. Qxg5 {[%clk 00:44:25]} {[%emt 00:00:22]} f6 {[%clk 00:28:51]} {[%emt
00:01:30]} 21. Qg4 {[%clk 00:35:26]} {[%emt 00:09:29]} Rxe1+ {[%clk 00:27:14]}
{[%emt 00:02:07]} 22. Rxe1 {[%clk 00:35:49]} {[%emt 00:00:06]} Qa5 {[%clk
00:26:57]} {[%emt 00:00:48]} 23. Re7 {[%clk 00:32:40]} {[%emt 00:03:40]} Rg8
{[%clk 00:17:38]} {[%emt 00:09:49]} 24. a3 {[%clk 00:24:29]} {[%emt 00:08:42]}
Qd8 {[%clk 00:15:25]} {[%emt 00:02:43]} 25. Rxg7 {[%clk 00:21:31]} {[%emt
00:03:28]} Rxg7 {[%clk 00:15:28]} {[%emt 00:00:28]} 26. Qxg7 {[%clk 00:21:58]}
{[%emt 00:00:03]} Qe8 {[%clk 00:15:22]} {[%emt 00:00:36]} 27. Kd2 {[%clk
00:21:01]} {[%emt 00:01:27]} Qh5 {[%clk 00:14:40]} {[%emt 00:01:12]} 28. Qg4
{[%clk 00:19:55]} {[%emt 00:01:36]} Qxg4 {[%clk 00:13:41]} {[%emt 00:01:29]} 29.
hxg4 {[%clk 00:20:22]} {[%emt 00:00:03]} Kd8 {[%clk 00:13:57]} {[%emt
00:00:15]} 30. Ke3 {[%clk 00:19:39]} {[%emt 00:01:12]} Ke7 {[%clk 00:09:26]}
{[%emt 00:05:02]} 31. Kf4 {[%clk 00:20:02]} {[%emt 00:00:06]} Nf8 {[%clk
00:08:29]} {[%emt 00:01:28]} 32. g5 {[%clk 00:20:05]} {[%emt 00:00:27]} fxg5+
{[%clk 00:08:54]} {[%emt 00:00:05]} 33. Kxg5 {[%clk 00:20:30]} {[%emt
00:00:04]} Nh7+ {[%clk 00:07:16]} {[%emt 00:02:08]} 34. Kg6 {[%clk 00:19:59]}
{[%emt 00:01:01]} Nf6 {[%clk 00:07:38]} {[%emt 00:00:08]} 35. c4 {[%clk
00:17:07]} {[%emt 00:03:22]} dxc4 {[%clk 00:06:57]} {[%emt 00:01:10]} 36. Bxc4
{[%clk 00:16:04]} {[%emt 00:01:33]} b6 {[%clk 00:06:58]} {[%emt 00:00:29]} 37.
b4 {[%clk 00:16:27]} {[%emt 00:00:07]} a5 {[%clk 00:04:33]} {[%emt 00:02:55]}
38. bxa5 {[%clk 00:14:23]} {[%emt 00:02:34]} bxa5 {[%clk 00:04:59]} {[%emt
00:00:04]} 39. Be2 {[%clk 00:14:46]} {[%emt 00:00:07]} Nd7 {[%clk 00:02:31]}
{[%emt 00:02:58]} 40. Kg7 {[%clk 00:14:32]} {[%emt 00:00:44]} Nf6 {[%clk
00:02:23]} {[%emt 00:00:38]} 41. Bf3 {[%clk 00:14:45]} {[%emt 00:00:17]} Ne8
{[%clk 00:29:55]} {[%emt 00:02:58]} 42. Kg6 {[%clk 00:45:04]} {[%emt 00:00:10]}
Kf8 {[%clk 00:29:32]} {[%emt 00:00:54]} 43. Bxc6 {[%clk 00:45:21]} {[%emt
00:00:12]} Nd6 {[%clk 00:29:46]} {[%emt 00:00:18]} 44. Kf6 {[%clk 00:44:34]}
{[%emt 00:01:16]} Nc4 {[%clk 00:29:42]} {[%emt 00:00:35]} 45. Bb5 {[%clk
00:44:01]} {[%emt 00:01:02]} Nd6 {[%clk 00:29:26]} {[%emt 00:00:46]} 46. Bd3
{[%clk 00:44:25]} {[%emt 00:00:06]} Ne8+ {[%clk 00:29:33]} {[%emt 00:00:23]} 47.
Ke6 {[%clk 00:44:42]} {[%emt 00:00:13]} 1-0

[Event "Amateur Tournament (ATO)"]
[Site "Biel, Switzerland"]
[Date "2026.07.16"]
[Round "3.3"]
[White "van Bogaert, Olivier"]
[Black "Aegerter, Fabrice"]
[Result "1/2-1/2"]
[TimeControl "90+30+30sec/move"]
[WhiteTitle "-"]
[BlackTitle "-"]
[WhiteFideId "134178780"]
[BlackFideId "1344854"]
[WhiteElo "1810"]
[BlackElo "1915"]

1. d4 {[%clk 01:30:50]} {[%emt 00:00:09]} f5 {[%clk 01:30:29]} {[%emt
00:00:32]} 2. Bf4 {[%clk 01:30:50]} {[%emt 00:00:30]} Nf6 {[%clk 01:30:29]}
{[%emt 00:00:31]} 3. e3 {[%clk 01:31:05]} {[%emt 00:00:15]} e6 {[%clk
01:30:51]} {[%emt 00:00:08]} 4. Nf3 {[%clk 01:31:24]} {[%emt 00:00:11]} b6
{[%clk 01:31:11]} {[%emt 00:00:09]} 5. h3 {[%clk 01:29:54]} {[%emt 00:02:00]}
Bb7 {[%clk 01:31:12]} {[%emt 00:00:29]} 6. Be2 {[%clk 01:30:18]} {[%emt
00:00:07]} Bd6 {[%clk 01:30:26]} {[%emt 00:01:16]} 7. O-O {[%clk 01:29:23]}
{[%emt 00:01:25]} O-O {[%clk 01:29:43]} {[%emt 00:01:12]} 8. c4 {[%clk
01:28:54]} {[%emt 00:01:00]} Bxf4 {[%clk 01:21:32]} {[%emt 00:08:41]} 9. exf4
{[%clk 01:29:18]} {[%emt 00:00:06]} c5 {[%clk 01:20:00]} {[%emt 00:02:01]} 10.
dxc5 {[%clk 01:23:50]} {[%emt 00:05:59]} bxc5 {[%clk 01:18:45]} {[%emt
00:01:44]} 11. Nc3 {[%clk 01:23:13]} {[%emt 00:01:08]} d5 {[%clk 00:59:56]}
{[%emt 00:19:18]} 12. cxd5 {[%clk 01:11:52]} {[%emt 00:11:52]} exd5 {[%clk
00:59:20]} {[%emt 00:01:05]} 13. Qb3 {[%clk 01:11:53]} {[%emt 00:00:29]} Qb6
{[%clk 00:50:28]} {[%emt 00:09:22]} 14. Na4 {[%clk 00:48:51]} {[%emt 00:23:33]}
Qxb3 {[%clk 00:35:06]} {[%emt 00:15:52]} 15. axb3 {[%clk 00:49:19]} {[%emt
00:00:02]} Ba6 {[%clk 00:34:16]} {[%emt 00:01:20]} 16. Rfe1 {[%clk 00:43:06]}
{[%emt 00:06:42]} Bxe2 {[%clk 00:18:06]} {[%emt 00:16:41]} 17. Rxe2 {[%clk
00:43:34]} {[%emt 00:00:02]} Nbd7 {[%clk 00:17:17]} {[%emt 00:01:19]} 18. Ne5
{[%clk 00:40:05]} {[%emt 00:04:00]} Rfe8 {[%clk 00:10:05]} {[%emt 00:07:42]} 19.
Rae1 {[%clk 00:40:12]} {[%emt 00:00:22]} Kf8 {[%clk 00:08:15]} {[%emt
00:02:21]} 20. Nd3 {[%clk 00:34:55]} {[%emt 00:05:47]} Rac8 {[%clk 00:03:37]}
{[%emt 00:05:08]} 21. Rxe8+ {[%clk 00:33:39]} {[%emt 00:01:46]} Nxe8 {[%clk
00:03:55]} {[%emt 00:00:12]} 22. Rc1 {[%clk 00:33:57]} {[%emt 00:00:12]} c4
{[%clk 00:03:43]} {[%emt 00:00:42]} 23. bxc4 {[%clk 00:33:51]} {[%emt
00:00:36]} 1/2-1/2

[Event "Amateur Tournament (ATO)"]
[Site "Biel, Switzerland"]
[Date "2026.07.16"]
[Round "3.4"]
[White "Sushrutha, Reddy"]
[Black "Coletta, Julien"]
[Result "0-1"]
[TimeControl "90+30+30sec/move"]
[WhiteTitle "-"]
[BlackTitle "-"]
[WhiteFideId "5039100"]
[BlackFideId "1342223"]
[WhiteElo "1799"]
[BlackElo "1889"]

1. e4 {[%clk 01:24:44]} {[%emt 00:06:14]} e5 {[%clk 01:29:44]} {[%emt
00:01:16]} 2. f4 {[%clk 01:25:11]} {[%emt 00:00:03]} Bc5 {[%clk 01:30:06]}
{[%emt 00:00:08]} 3. Nf3 {[%clk 01:25:29]} {[%emt 00:00:12]} d6 {[%clk
01:30:29]} {[%emt 00:00:07]} 4. Bc4 {[%clk 01:25:14]} {[%emt 00:00:44]} Nf6
{[%clk 01:28:57]} {[%emt 00:02:01]} 5. Nc3 {[%clk 01:24:38]} {[%emt 00:01:07]}
O-O {[%clk 01:09:24]} {[%emt 00:20:03]} 6. d3 {[%clk 01:24:43]} {[%emt
00:00:25]} a6 {[%clk 01:08:03]} {[%emt 00:01:51]} 7. Qe2 {[%clk 01:24:30]}
{[%emt 00:00:42]} Nc6 {[%clk 01:04:50]} {[%emt 00:03:45]} 8. f5 {[%clk
01:22:21]} {[%emt 00:02:39]} h6 {[%clk 01:02:35]} {[%emt 00:02:45]} 9. Be3
{[%clk 01:22:44]} {[%emt 00:00:02]} Bxe3 {[%clk 00:58:32]} {[%emt 00:04:37]} 10.
Qxe3 {[%clk 01:23:09]} {[%emt 00:00:05]} Na5 {[%clk 00:58:50]} {[%emt
00:00:13]} 11. O-O {[%clk 01:22:04]} {[%emt 00:01:34]} Nxc4 {[%clk 00:46:47]}
{[%emt 00:12:34]} 12. dxc4 {[%clk 01:22:27]} {[%emt 00:00:07]} b5 {[%clk
00:46:29]} {[%emt 00:00:47]} 13. Rad1 {[%clk 01:20:18]} {[%emt 00:02:35]} Bb7
{[%clk 00:32:57]} {[%emt 00:14:06]} 14. h3 {[%clk 01:16:36]} {[%emt 00:04:12]}
Nd7 {[%clk 00:26:45]} {[%emt 00:06:43]} 15. cxb5 {[%clk 01:15:03]} {[%emt
00:02:03]} axb5 {[%clk 00:27:10]} {[%emt 00:00:05]} 16. a3 {[%clk 01:13:36]}
{[%emt 00:01:56]} Nf6 {[%clk 00:21:35]} {[%emt 00:06:05]} 17. Rfe1 {[%clk
01:07:34]} {[%emt 00:06:32]} Qe7 {[%clk 00:17:30]} {[%emt 00:04:37]} 18. Rd2
{[%clk 01:05:35]} {[%emt 00:02:27]} Rfb8 {[%clk 00:16:58]} {[%emt 00:01:03]} 19.
g4 {[%clk 01:05:53]} {[%emt 00:00:11]} Kh7 {[%clk 00:09:15]} {[%emt 00:08:15]}
20. Rg2 {[%clk 01:04:02]} {[%emt 00:02:20]} Bc6 {[%clk 00:08:32]} {[%emt
00:01:14]} 21. g5 {[%clk 01:03:28]} {[%emt 00:01:03]} Nh5 {[%clk 00:08:16]}
{[%emt 00:00:47]} 22. Rg4 {[%clk 00:57:46]} {[%emt 00:06:10]} Nf4 {[%clk
00:06:48]} {[%emt 00:02:00]} 23. Ne2 {[%clk 00:56:10]} {[%emt 00:02:05]} Nxh3+
{[%clk 00:04:25]} {[%emt 00:02:55]} 24. Kg2 {[%clk 00:55:44]} {[%emt 00:00:54]}
Nxg5 {[%clk 00:04:20]} {[%emt 00:00:37]} 25. Nxg5+ {[%clk 00:54:56]} {[%emt
00:01:18]} hxg5 {[%clk 00:04:29]} {[%emt 00:00:21]} 26. Qh3+ {[%clk 00:49:10]}
{[%emt 00:06:15]} Kg8 {[%clk 00:04:51]} {[%emt 00:00:08]} 27. Rh1 {[%clk
00:48:54]} {[%emt 00:00:45]} f6 {[%clk 00:05:03]} {[%emt 00:00:20]} 28. Ng3
{[%clk 00:47:40]} {[%emt 00:01:44]} Kf7 {[%clk 00:01:58]} {[%emt 00:03:36]} 29.
Qh5+ {[%clk 00:45:33]} {[%emt 00:02:36]} Kf8 {[%clk 00:01:12]} {[%emt
00:01:16]} 30. Qg6 {[%clk 00:45:38]} {[%emt 00:00:23]} Qf7 {[%clk 00:01:06]}
{[%emt 00:00:38]} 31. Qh7 {[%clk 00:42:26]} {[%emt 00:03:39]} Ke7 {[%clk
00:01:05]} {[%emt 00:00:34]} 32. Nh5 {[%clk 00:41:31]} {[%emt 00:01:22]} Rh8
{[%clk 00:00:45]} {[%emt 00:00:53]} 33. Qxg7 {[%clk 00:39:49]} {[%emt
00:02:11]} Qxg7 {[%clk 00:01:12]} {[%emt 00:00:04]} 34. Nxg7 {[%clk 00:40:02]}
{[%emt 00:00:18]} Rxh1 {[%clk 00:01:32]} {[%emt 00:00:08]} 35. Kxh1 {[%clk
00:40:19]} {[%emt 00:00:14]} Rh8+ {[%clk 00:01:49]} {[%emt 00:00:13]} 36. Kg2
{[%clk 00:40:47]} {[%emt 00:00:01]} Bd7 {[%clk 00:01:22]} {[%emt 00:00:58]} 37.
Rg3 {[%clk 00:40:59]} {[%emt 00:00:18]} Kf7 {[%clk 00:01:18]} {[%emt 00:00:34]}
38. Ne6 {[%clk 00:40:45]} {[%emt 00:00:44]} Bxe6 {[%clk 00:01:41]} {[%emt
00:00:07]} 39. fxe6+ {[%clk 00:40:58]} {[%emt 00:00:17]} Kxe6 {[%clk 00:02:08]}
{[%emt 00:00:03]} 40. Rb3 {[%clk 00:41:08]} {[%emt 00:00:20]} c6 {[%clk
00:01:30]} {[%emt 00:01:09]} 41. Rb4 {[%clk 00:41:31]} {[%emt 00:00:06]} d5
{[%clk 00:23:34]} {[%emt 00:08:56]} 42. a4 {[%clk 01:12:48]} {[%emt 00:00:14]}
bxa4 {[%clk 00:23:36]} {[%emt 00:00:28]} 43. exd5+ {[%clk 01:13:12]} {[%emt
00:00:06]} Kxd5 {[%clk 00:23:42]} {[%emt 00:00:23]} 44. Rxa4 {[%clk 01:13:35]}
{[%emt 00:00:07]} Rh4 {[%clk 00:21:14]} {[%emt 00:02:58]} 0-1

[Event "Amateur Tournament (ATO)"]
[Site "Biel, Switzerland"]
[Date "2026.07.16"]
[Round "3.6"]
[White "Czarkowski, Dawid"]
[Black "Schorno, Wim"]
[Result "1-0"]
[TimeControl "90+30+30sec/move"]
[WhiteTitle "-"]
[BlackTitle "-"]
[WhiteFideId "545067392"]
[BlackFideId "1359606"]
[WhiteElo "1713"]
[BlackElo "1860"]

1. d4 {[%clk 01:30:58]} {[%emt 00:00:02]} Nf6 {[%clk 01:30:50]} {[%emt
00:00:09]} 2. c4 {[%clk 01:31:21]} {[%emt 00:00:07]} e6 {[%clk 01:31:07]}
{[%emt 00:00:13]} 3. Nc3 {[%clk 01:31:27]} {[%emt 00:00:24]} Bb4 {[%clk
01:31:25]} {[%emt 00:00:11]} 4. Qc2 {[%clk 01:31:25]} {[%emt 00:00:33]} Bxc3+
{[%clk 01:30:47]} {[%emt 00:01:09]} 5. Qxc3 {[%clk 01:31:36]} {[%emt 00:00:19]}
Ne4 {[%clk 01:30:59]} {[%emt 00:00:17]} 6. Qc2 {[%clk 01:27:08]} {[%emt
00:04:58]} f5 {[%clk 01:31:20]} {[%emt 00:00:09]} 7. Nf3 {[%clk 01:23:08]}
{[%emt 00:04:30]} b6 {[%clk 01:31:35]} {[%emt 00:00:15]} 8. Bf4 {[%clk
01:18:20]} {[%emt 00:05:17]} Bb7 {[%clk 01:29:00]} {[%emt 00:03:06]} 9. e3
{[%clk 01:16:59]} {[%emt 00:01:51]} O-O {[%clk 01:27:54]} {[%emt 00:01:36]} 10.
h3 {[%clk 01:11:32]} {[%emt 00:05:57]} d6 {[%clk 01:26:16]} {[%emt 00:02:08]}
11. Bd3 {[%clk 01:00:28]} {[%emt 00:11:35]} Qe8 {[%clk 01:24:31]} {[%emt
00:02:15]} 12. O-O {[%clk 00:59:08]} {[%emt 00:01:50]} Qg6 {[%clk 01:20:55]}
{[%emt 00:04:05]} 13. Be2 {[%clk 00:55:35]} {[%emt 00:04:04]} Nd7 {[%clk
01:18:39]} {[%emt 00:02:47]} 14. b4 {[%emt 00:06:32]} Ndf6 {[%clk 01:13:41]}
{[%emt 00:01:13]} 15. Rfd1 {[%emt 00:06:18]} Nh5 {[%emt 00:08:05]} 16. Bh2
{[%clk 00:41:05]} {[%emt 00:06:16]} f4 {[%clk 00:58:46]} {[%emt 00:08:59]} 17.
exf4 {[%clk 00:25:45]} {[%emt 00:15:50]} Nxf4 {[%clk 00:57:50]} {[%emt
00:01:25]} 18. Bxf4 {[%clk 00:25:23]} {[%emt 00:00:53]} Rxf4 {[%clk 00:57:48]}
{[%emt 00:00:32]} 19. Kf1 {[%clk 00:18:59]} {[%emt 00:06:54]} Ng3+ {[%clk
00:57:21]} {[%emt 00:00:57]} 20. fxg3 {[%clk 00:19:20]} {[%emt 00:00:10]} Rxf3+
{[%clk 00:53:50]} {[%emt 00:04:01]} 21. Bxf3 {[%clk 00:19:22]} {[%emt
00:00:27]} Qxc2 {[%clk 00:54:10]} {[%emt 00:00:09]} 22. Bxb7 {[%clk 00:19:29]}
{[%emt 00:00:24]} Qxc4+ {[%clk 00:52:54]} {[%emt 00:01:46]} 23. Kg1 {[%clk
00:19:29]} {[%emt 00:00:30]} Rf8 {[%clk 00:51:47]} {[%emt 00:01:37]} 24. a3
{[%clk 00:16:54]} {[%emt 00:03:05]} d5 {[%clk 00:51:14]} {[%emt 00:01:04]} 25.
Rac1 {[%clk 00:16:04]} {[%emt 00:01:20]} Qe2 {[%clk 00:51:05]} {[%emt
00:00:38]} 26. Kh2 {[%clk 00:14:38]} {[%emt 00:01:56]} Rf2 {[%clk 00:42:52]}
{[%emt 00:08:43]} 27. Rg1 {[%clk 00:14:56]} {[%emt 00:00:13]} g5 {[%clk
00:34:27]} {[%emt 00:08:55]} 28. Rxc7 {[%clk 00:10:44]} {[%emt 00:04:42]} g4
{[%clk 00:33:07]} {[%emt 00:01:48]} 29. h4 {[%clk 00:09:10]} {[%emt 00:02:05]}
Rf3 {[%clk 00:31:28]} {[%emt 00:02:08]} 30. Bc8 {[%clk 00:06:40]} {[%emt
00:03:01]} Qf2 {[%clk 00:27:54]} {[%emt 00:04:03]} 31. Bxe6+ {[%clk 00:05:53]}
{[%emt 00:01:18]} Kf8 {[%clk 00:28:07]} {[%emt 00:00:15]} 32. Rxh7 {[%clk
00:00:34]} {[%emt 00:05:50]} Qxg3+ {[%clk 00:20:27]} {[%emt 00:08:10]} 33. Kh1
{[%clk 00:01:03]} {[%emt 00:00:02]} Rf2 {[%clk 00:14:40]} {[%emt 00:06:16]} 34.
Bxd5 {[%clk 00:00:55]} {[%emt 00:00:38]} Qd6 {[%clk 00:14:39]} {[%emt
00:00:31]} 35. Rc1 {[%clk 00:00:35]} {[%emt 00:00:51]} Re2 {[%clk 00:11:54]}
{[%emt 00:03:15]} 36. Rf7+ {[%clk 00:00:33]} {[%emt 00:00:31]} Kg8 {[%clk
00:11:42]} {[%emt 00:00:42]} 37. Rc8+ {[%emt 00:00:56]} 1-0

[Event "Amateur Tournament (ATO)"]
[Site "Biel, Switzerland"]
[Date "2026.07.17"]
[Round "4.1"]
[White "Zhou, Abigail"]
[Black "Alexakis, Dimitrios"]
[Result "1/2-1/2"]
[TimeControl "90+30+30sec/move"]
[WhiteTitle "-"]
[BlackTitle "-"]
[WhiteFideId "39922081"]
[BlackFideId "4200527"]
[WhiteElo "1831"]
[BlackElo "1959"]

1. e4 {[%clk 01:30:59]} {[%emt 01:00:43]} c5 {[%clk 01:30:28]} {[%emt
00:00:32]} 2. Nf3 {[%clk 01:31:24]} {[%emt 00:00:06]} d6 {[%clk 01:30:39]}
{[%emt 00:00:18]} 3. d4 {[%clk 01:31:51]} {[%emt 00:00:04]} cxd4 {[%clk
01:30:54]} {[%emt 00:00:15]} 4. Nxd4 {[%clk 01:32:15]} {[%emt 00:00:07]} Nf6
{[%clk 01:31:06]} {[%emt 00:00:17]} 5. Nc3 {[%clk 01:32:36]} {[%emt 00:00:09]}
Nc6 {[%clk 01:29:36]} {[%emt 00:02:00]} 6. Be2 {[%clk 01:32:08]} {[%emt
00:00:59]} e5 {[%clk 01:28:13]} {[%emt 00:01:52]} 7. Nb3 {[%clk 01:32:28]}
{[%emt 00:00:11]} Be7 {[%clk 01:27:53]} {[%emt 00:00:49]} 8. O-O {[%clk
01:32:08]} {[%emt 00:00:50]} O-O {[%clk 01:27:54]} {[%emt 00:00:28]} 9. Bf3
{[%clk 01:29:25]} {[%emt 00:03:14]} Be6 {[%clk 01:26:04]} {[%emt 00:02:19]} 10.
Be3 {[%clk 01:20:40]} {[%emt 00:09:16]} Na5 {[%clk 01:17:14]} {[%emt 00:09:19]}
11. Nxa5 {[%clk 01:19:35]} {[%emt 00:01:36]} Qxa5 {[%clk 01:17:06]} {[%emt
00:00:38]} 12. Qd2 {[%clk 01:15:52]} {[%emt 00:04:14]} Kh8 {[%clk 01:13:18]}
{[%emt 00:04:16]} 13. Rad1 {[%clk 01:06:25]} {[%emt 00:09:58]} Rac8 {[%clk
01:04:13]} {[%emt 00:09:34]} 14. a3 {[%clk 00:52:25]} {[%emt 00:14:32]} a6
{[%clk 00:57:52]} {[%emt 00:06:49]} 15. h3 {[%clk 00:44:53]} {[%emt 00:08:03]}
b5 {[%clk 00:53:45]} {[%emt 00:04:36]} 16. Ne2 {[%clk 00:39:26]} {[%emt
00:05:58]} Qc7 {[%clk 00:48:18]} {[%emt 00:05:56]} 17. Nc3 {[%clk 00:39:30]}
{[%emt 00:00:28]} Bc4 {[%clk 00:43:42]} {[%emt 00:05:04]} 18. Be2 {[%clk
00:37:27]} {[%emt 00:02:34]} Qb7 {[%clk 00:40:40]} {[%emt 00:03:31]} 19. f3
{[%clk 00:33:28]} {[%emt 00:04:30]} Rfd8 {[%clk 00:36:53]} {[%emt 00:04:16]} 20.
Bg5 {[%clk 00:25:51]} {[%emt 00:08:09]} Bxe2 {[%clk 00:25:58]} {[%emt
00:11:24]} 21. Qxe2 {[%clk 00:25:13]} {[%emt 00:01:08]} Nh5 {[%clk 00:24:55]}
{[%emt 00:01:32]} 22. Bxe7 {[%clk 00:23:58]} {[%emt 00:01:45]} Nf4 {[%clk
00:25:11]} {[%emt 00:00:14]} 23. Qf2 {[%clk 00:23:44]} {[%emt 00:00:45]} Qxe7
{[%clk 00:25:12]} {[%emt 00:00:29]} 24. Kh2 {[%clk 00:23:27]} {[%emt 00:00:48]}
Qg5 {[%clk 00:21:26]} {[%emt 00:04:15]} 25. Nd5 {[%clk 00:20:29]} {[%emt
00:03:29]} Nxd5 {[%clk 00:18:59]} {[%emt 00:02:56]} 26. Rxd5 {[%clk 00:18:26]}
{[%emt 00:02:33]} Rc6 {[%clk 00:18:51]} {[%emt 00:00:37]} 27. c3 {[%clk
00:17:30]} {[%emt 00:01:28]} Qe7 {[%clk 00:18:16]} {[%emt 00:01:04]} 28. Rfd1
{[%clk 00:17:41]} {[%emt 00:00:19]} Kg8 {[%clk 00:17:43]} {[%emt 00:01:03]} 29.
Qg3 {[%clk 00:15:39]} {[%emt 00:02:32]} Rf8 {[%clk 00:17:19]} {[%emt 00:00:53]}
30. Qf2 {[%clk 00:13:22]} {[%emt 00:02:48]} Rd8 {[%clk 00:15:42]} {[%emt
00:02:05]} 31. Qg3 {[%clk 00:13:20]} {[%emt 00:00:34]} Rf8 {[%clk 00:16:02]}
{[%emt 00:00:10]} 1/2-1/2

[Event "Amateur Tournament (ATO)"]
[Site "Biel, Switzerland"]
[Date "2026.07.17"]
[Round "4.2"]
[White "Gheorghiu, Harry"]
[Black "Jahn, Thomas"]
[Result "0-1"]
[TimeControl "90+30+30sec/move"]
[WhiteTitle "-"]
[BlackTitle "-"]
[WhiteFideId "1248839"]
[BlackFideId "34679430"]
[WhiteElo "1733"]
[BlackElo "1944"]

1. e4 {[%clk 01:30:56]} {[%emt 00:00:02]} c5 {[%clk 01:30:43]} {[%emt
00:00:18]} 2. Nc3 {[%clk 01:31:13]} {[%emt 00:00:12]} Nc6 {[%clk 01:30:45]}
{[%emt 00:00:29]} 3. f4 {[%clk 01:31:31]} {[%emt 00:00:11]} g6 {[%clk
01:29:09]} {[%emt 00:02:06]} 4. Nf3 {[%clk 01:31:31]} {[%emt 00:00:30]} Bg7
{[%clk 01:29:02]} {[%emt 00:00:07]} 5. a3 {[%clk 01:31:38]} {[%emt 00:00:24]}
d6 {[%clk 01:29:43]} {[%emt 00:00:19]} 6. Bb5 {[%clk 01:31:50]} {[%emt
00:00:18]} Bd7 {[%clk 01:29:55]} {[%emt 00:00:18]} 7. Bxc6 {[%clk 01:32:10]}
{[%emt 00:00:10]} Bxc6 {[%clk 01:30:18]} {[%emt 00:00:07]} 8. d3 {[%clk
01:32:35]} {[%emt 00:00:04]} Qb6 {[%clk 01:28:11]} {[%emt 00:02:37]} 9. Nd5
{[%clk 01:13:16]} {[%emt 00:19:49]} Bxd5 {[%clk 01:24:52]} {[%emt 00:03:49]} 10.
exd5 {[%clk 01:13:41]} {[%emt 00:00:06]} Bxb2 {[%clk 01:25:12]} {[%emt
00:00:10]} 11. Rb1 {[%clk 01:14:02]} {[%emt 00:00:08]} Bc3+ {[%clk 01:25:34]}
{[%emt 00:00:08]} 12. Bd2 {[%clk 01:14:26]} {[%emt 00:00:05]} Bxd2+ {[%clk
01:25:58]} {[%emt 00:00:07]} 13. Nxd2 {[%clk 01:14:42]} {[%emt 00:00:14]} Qc7
{[%clk 01:25:23]} {[%emt 00:01:05]} 14. Ne4 {[%clk 01:14:33]} {[%emt 00:00:39]}
Nf6 {[%clk 01:21:27]} {[%emt 00:04:27]} 15. Nxf6+ {[%clk 01:14:41]} {[%emt
00:00:22]} exf6 {[%clk 01:21:50]} {[%emt 00:00:06]} 16. Qe2+ {[%clk 01:14:55]}
{[%emt 00:00:16]} Kf8 {[%clk 01:21:48]} {[%emt 00:00:32]} 17. O-O {[%clk
01:14:39]} {[%emt 00:00:46]} Re8 {[%clk 01:22:09]} {[%emt 00:00:10]} 18. Qf2
{[%clk 01:14:13]} {[%emt 00:00:55]} Kg7 {[%clk 01:20:10]} {[%emt 00:02:28]} 19.
f5 {[%clk 01:13:53]} {[%emt 00:00:51]} g5 {[%clk 01:19:15]} {[%emt 00:01:26]}
20. h4 {[%clk 01:13:56]} {[%emt 00:00:27]} h6 {[%clk 01:19:35]} {[%emt
00:00:10]} 21. Rfe1 {[%clk 01:03:52]} {[%emt 00:10:33]} Qd7 {[%clk 01:19:29]}
{[%emt 00:00:36]} 22. h5 {[%clk 01:03:32]} {[%emt 00:00:51]} Rxe1+ {[%clk
01:16:40]} {[%emt 00:03:20]} 23. Rxe1 {[%clk 01:03:47]} {[%emt 00:00:14]} Re8
{[%clk 01:17:02]} {[%emt 00:00:07]} 24. g4 {[%clk 01:00:05]} {[%emt 00:04:12]}
Rxe1+ {[%clk 01:10:24]} {[%emt 00:07:09]} 25. Qxe1 {[%clk 01:00:29]} {[%emt
00:00:06]} Qa4 {[%clk 01:10:51]} {[%emt 00:00:03]} 26. Qe7 {[%clk 01:00:49]}
{[%emt 00:00:09]} Qxg4+ {[%clk 01:11:14]} {[%emt 00:00:07]} 27. Kh1 {[%clk
01:00:41]} {[%emt 00:00:38]} Qxh5+ {[%clk 01:11:35]} {[%emt 00:00:09]} 28. Kg1
{[%clk 01:01:05]} {[%emt 00:00:06]} Qg4+ {[%clk 01:11:14]} {[%emt 00:00:51]} 29.
Kh1 {[%clk 01:01:30]} {[%emt 00:00:05]} Qf3+ {[%clk 01:11:35]} {[%emt
00:00:08]} 30. Kh2 {[%clk 01:01:37]} {[%emt 00:00:24]} Qxd5 {[%clk 01:11:58]}
{[%emt 00:00:07]} 31. c4 {[%clk 00:59:14]} {[%emt 00:02:54]} Qe5+ {[%clk
01:12:20]} {[%emt 00:00:08]} 0-1